Cogmind - Beta 13 @@@ ROGUE MODE // 2024.05.25 @ 22:53:07 Player: opdo Result: Destroyed by D-53 Grenadier with Mini Grenade Launcher Performance ------------- Evolutions (0) 0 Regions Visited (4) 800 Robots Destroyed (11) 55 Value Destroyed (119) 119 Prototype IDs (0) 0 Alien Tech Used (0) 0 Bonus (0) 0 TOTAL SCORE: 974 Bonus ------- None Cogmind --------- Core Integrity 0/250 Matter 226/300 Energy 97/100 System Corruption 0% Temperature Cool (0) Movement Core (300) Ox5 Location -9/Mines Parts ------- > --- POWER (1) -------- (None) > --- PROPULSION (2) --- (None) > --- UTILITY (2) ------ Medium Storage Unit > --- WEAPON (2) ------- Makeshift Hammer Makeshift Axe > --- INVENTORY (10) --- Army-in-a-Box Small Laser Peak State ------------ > --- POWER ------------ Ion Engine > --- PROPULSION ------- Aluminum Leg Makeshift Leg > --- UTILITY ---------- Small Storage Unit Improved Terrain Scanner > --- WEAPON ----------- Small Laser Makeshift Axe > --- INVENTORY -------- Compact Wheel Army-in-a-Box Grenade Launcher [Rating: 20] Favorites ----------- Power Ion Engine Engine Ion Engine Propulsion Aluminum Leg Leg Aluminum Leg Utility Small Storage Unit Device Improved Terrain Scanner Storage Small Storage Unit Weapon Small Laser Energy Gun Small Laser Launcher Grenade Launcher Impact Weapon Makeshift Hammer Slashing Weapon Makeshift Axe Build | -11 -10 -10 -10 -9 ------- Run | Yrd Mat Min Exi Min Slots Evolved . | . . . . . Power . | . . . . . Propulsion . | . . . . . Utility . | . . . . . Weapon . | . . . . . Parts Attached 14 | 7 . . 4 3 Power 1 | 1 . . . . Engine 1 | 1 . . . . Core . | . . . . . Reactor . | . . . . . Propulsion 3 | 2 . . 1 . Treads . | . . . . . Leg 3 | 2 . . 1 . Wheel . | . . . . . Hover . | . . . . . Flight . | . . . . . Utility 5 | 2 . . 2 1 Device 2 | 1 . . 1 . Storage 3 | 1 . . 1 1 Processor . | . . . . . Hackware . | . . . . . Protection . | . . . . . Artifact . | . . . . . Weapon 5 | 2 . . 1 2 Energy Gun 2 | 2 . . . . Energy Cannon . | . . . . . Ballistic Gun . | . . . . . Ballistic Cannon . | . . . . . Launcher 1 | . . . . 1 Special Weapon . | . . . . . Impact Weapon 1 | . . . . 1 Slashing Weapon 1 | . . . 1 . Piercing Weapon . | . . . . . Special Melee Weapon . | . . . . . Unidentified Prototypes . | . . . . . Parts Lost 5 | . . . . 5 Power 1 | . . . . 1 Propulsion 2 | . . . . 2 Utility 1 | . . . . 1 Weapon 1 | . . . . 1 Highest Loss Streak 5 | . . . . 5 To Critical Strikes . | . . . . . Average Slot Usage (%) 99 | . 100 100 99 93 Engine 13 | . 14 14 14 13 Leg 27 | . 28 28 28 26 Device 13 | . 14 14 13 12 Storage 14 | . 14 14 14 14 Energy Gun 22 | . 28 28 21 9 Slashing Weapon 4 | . . . 6 14 Naked Turns . | . . . . . Heaviest Build 22 | 13 13 13 17 22 Greatest Support 30 | 20 20 20 30 30 Greatest Overweight (x) . | . . . . . Average Overweight (x) . | . . . . . Largest Inventory Capacity 10 | 8 8 8 8 10 Average Capacity 8 | 7 8 8 8 8 Most Carried 8 | 4 8 8 8 8 Average Carried 7 | 3 5 8 7 7 Final Capacity 10 | 8 8 8 8 10 Final Carried 8 | 4 8 8 8 7 Class Distribution -------------------- 51% | Commander-Mutant 48% | Mutant Dominant Class ---------------- Mutant | -10/Materials Mutant | -10/Mines Commander-Mutant | -10/Exiles Commander-Mutant | -9/Mines Resources | -11 -10 -10 -10 -9 ----------- Run | Yrd Mat Min Exi Min Matter Collected 301 | 270 . . . 31 Remotely . | . . . . . Salvage Created 280 | 175 56 35 . 14 Parts 27 | 11 9 2 . 5 Haulers Intercepted . | . . . . . Recyclers Shooed . | . . . . . Parts Field Recycled . | . . . . . Retrieved Matter . | . . . . . Parts Self-Destructed . | . . . . . Prevented . | . . . . . Kills | -11 -10 -10 -10 -9 ------- Run | Yrd Mat Min Exi Min Combat Hostiles Destroyed 5 | . 1 3 . 1 Guns 4 | . 1 3 . . AOE 1 | . . . . 1 Classes Destroyed 7 | 2 2 1 . 2 Builder 1 | . . . . 1 Tunneler 4 | 4 . . . . Recycler 1 | 1 . . . . Watcher 1 | . 1 . . . Swarmer 3 | . . 3 . . Grunt 1 | . 1 . . . Assembled 1 | . . . . 1 Best Kill Streak 5 | 5 1 3 . 2 Combat Bots Only 3 | . 1 3 . 1 Max Kills in Single Turn 2 | 1 1 1 . 2 Gunslinging . | . . . . . Exploded 1 | . . . . 1 Melee . | . . . . . Uniques/NPCs Destroyed . | . . . . . Combat | -11 -10 -10 -10 -9 -------- Run | Yrd Mat Min Exi Min Hostile Shots Fired 46 | . 11 16 . 19 Missed 11 | . 3 6 . 2 Damage Taken 817 | . 88 85 . 644 Core 250 | . 35 6 . 209 Absorbed by Shields . | . . . . . Core Remaining (%) 100 | 100 . . . . Volleys Fired 30 | 9 9 6 . 6 Largest 2 | 2 2 2 . 1 Hottest 80 | 80 80 80 . 30 Shots Fired 54 | 18 18 12 . 6 Gun 48 | 18 18 12 . . Cannon . | . . . . . Launcher 6 | . . . . 6 Special . | . . . . . Kinetic . | . . . . . Thermal 48 | 18 18 12 . . Explosive 6 | . . . . 6 Electromagnetic . | . . . . . Robot Hit Streak 6 | 4 6 3 . 2 Robot Miss Streak 4 | 2 3 4 . 4 Penetration Max . | . . . . . Secondary Targets 1 | . . 1 . . Max Gunslinging Chain 1 | . . 1 . . Shots Hit Robots 32 | 11 11 6 . 4 Core Hits 20 | 6 4 3 . 7 Critical Kills . | . . . . . Critical Parts Destroyed . | . . . . . Critical Strikes . | . . . . . Melee Attacks 5 | . . . . 5 Impact 4 | . . . . 4 Slashing 1 | . . . . 1 Piercing . | . . . . . Sneak Attacks . | . . . . . Combat Hostiles . | . . . . . Follow-up Attacks . | . . . . . Damage Inflicted 545 | 131 118 65 . 231 Guns 314 | 131 118 65 . . Cannons . | . . . . . Explosions 144 | . . . . 144 Melee 87 | . . . . 87 Ramming . | . . . . . Kinetic . | . . . . . Thermal 314 | 131 118 65 . . Explosive 144 | . . . . 144 Electromagnetic . | . . . . . Impact 87 | . . . . 87 Slashing . | . . . . . Piercing . | . . . . . Highest Corruption . | . . . . . Average Corruption . | . . . . . Corruption Purged . | . . . . . Corruption Blocked . | . . . . . Overload Shots . | . . . . . Overflow Damage 10 | . . . . 10 Projectiles . | . . . . . Explosions 10 | . . . . 10 Melee . | . . . . . Knockbacks 1 | . . . . 1 Impact 1 | . . . . 1 Kinetic . | . . . . . Secondary . | . . . . . Self-Inflicted Damage . | . . . . . Shots . | . . . . . Rammed . | . . . . . Targets Rammed . | . . . . . Kicked . | . . . . . Crushed . | . . . . . Highest Temperature 144 | 108 144 72 . 1 Average Temperature 52 | 62 59 30 . 1 Received Heat Transfer 88 | . 48 . . 40 Siege Activations . | . . . . . Robots Corrupted . | . . . . . Combat Hostiles . | . . . . . Parts Fried . | . . . . . Impact Corruptions . | . . . . . Robots Melted . | . . . . . Combat Hostiles . | . . . . . Parts Melted 1 | 1 . . . . Heat Transferred 725 | 300 275 150 . . Parts Sabotaged . | . . . . . Parts Stolen . | . . . . . Parts Stripped . | . . . . . Power Chain Reactions . | . . . . . Alert | -11 -10 -10 -10 -9 ------- Run | Yrd Mat Min Exi Min Peak Influence 144 | 25 114 144 . 35 Initial 44 | . 16 44 . . Average 68 | 7 53 110 . 3 Maximum Alert Level . | . . . . . Low Security (%) 100 | 100 100 100 . 100 Level 1 . | . . . . . Level 2 . | . . . . . Level 3 . | . . . . . Level 4 . | . . . . . Level 5 . | . . . . . High Security . | . . . . . Max Security . | . . . . . Squads Dispatched 1 | . 1 . . . Investigation . | . . . . . Extermination . | . . . . . Reinforcement 1 | . 1 . . . Assault . | . . . . . Garrison . | . . . . . Intercept . | . . . . . Searches Triggered . | . . . . . Construction Impeded . | . . . . . Haulers Reinforced . | . . . . . Active Scanning Responses . | . . . . . Cargo Convoy Interrupts . | . . . . . Stealth | -11 -10 -10 -10 -9 --------- Run | Yrd Mat Min Exi Min Distress Signals . | . . . . . Communications Jammed . | . . . . . Distress Signals . | . . . . . Times Spotted 26 | . 5 5 . 16 Peak Tracking Total 10 | . 2 3 . 10 Tactical Retreats 2 | . 1 1 . . Traps | -11 -10 -10 -10 -9 ------- Run | Yrd Mat Min Exi Min Traps Triggered . | . . . . . Indirectly . | . . . . . Trap Hack Attempts . | . . . . . Triggered . | . . . . . Disarmed . | . . . . . Reprogrammed . | . . . . . Reused . | . . . . . Traps Extracted . | . . . . . Installed . | . . . . . Triggered . | . . . . . Machines | -11 -10 -10 -10 -9 ---------- Run | Yrd Mat Min Exi Min Machines Disabled . | . . . . . Max in Single Turn . | . . . . . Machines Repaired . | . . . . . Machines Dismantled . | . . . . . Machines Sabotaged . | . . . . . Overloaded Fab Kills . | . . . . . Hacking | -11 -10 -10 -10 -9 --------- Run | Yrd Mat Min Exi Min Machines Accessed 3 | . 2 . 1 . Terminals 1 | . 1 . . . Fabricators . | . . . . . Repair Stations . | . . . . . Recycling Units 1 | . 1 . . . Scanalyzers . | . . . . . Garrison Access . | . . . . . Total Hacks 6 | . 5 . 1 . Successful 3 | . 2 . 1 . Failed 3 | . 3 . . . Catastrophic . | . . . . . Database Lockouts . | . . . . . Manual 6 | . 5 . 1 . Terminals 3 | . 3 . . . Fabricators . | . . . . . Repair Stations . | . . . . . Recycling Units 2 | . 2 . . . Scanalyzers . | . . . . . Garrison Access . | . . . . . Terminal Hacks 2 | . 1 . 1 . Record 1 | . . . 1 . Zone Layout 1 | . 1 . . . Fabricator Hacks . | . . . . . Repair Station Hacks . | . . . . . Recycling Unit Hacks . | . . . . . Scanalyzer . | . . . . . Garrison Access Hacks . | . . . . . Unauthorized Hacks 1 | . 1 . . . Terminals 1 | . 1 . . . Botnet 1 | . 1 . . . Fabricators . | . . . . . Repair Stations . | . . . . . Recycling Units . | . . . . . Scanalyzers . | . . . . . Garrison Access . | . . . . . Data Cores Recovered . | . . . . . Used . | . . . . . Hacking Detections 2 | . 2 . . . Full Trace Events 1 | . 1 . . . Feedback Events . | . . . . . Feedback Blocked . | . . . . . Robot Schematics Acquired . | . . . . . Robots Built . | . . . . . Authchips . | . . . . . Time . | . . . . . Total Robot Build Rating . | . . . . . Part Schematics Acquired . | . . . . . Parts Built . | . . . . . Authchips . | . . . . . Time . | . . . . . Total Part Build Rating . | . . . . . Parts Repaired . | . . . . . Time . | . . . . . Parts Recycled . | . . . . . Recycled Matter . | . . . . . Retrieved Matter . | . . . . . Retrieved Components . | . . . . . Parts Scanalyzed . | . . . . . Part Schematics Acquired . | . . . . . Parts Damaged . | . . . . . Bothacking | -11 -10 -10 -10 -9 ------------ Run | Yrd Mat Min Exi Min Used RIF Installer . | . . . . . Robots Hacked . | . . . . . Non-combat . | . . . . . Combat . | . . . . . Robot Hacks Applied . | . . . . . Relay Couplers Released . | . . . . . Fabnet Peak Effective % . | . . . . . Robots Rewired 4 | . . . 4 . Allies Hacked . | . . . . . Hacks Repelled . | . . . . . Allies | -11 -10 -10 -10 -9 -------- Run | Yrd Mat Min Exi Min Total Allies 10 | . . 5 4 1 Largest Group 8 | . . 5 7 8 Highest-Rated Group 116 | . . 85 85 116 Highest-Rated Ally 31 | . . 31 31 31 Total Orders 1 | . . . . 1 STAY 1 | . . . . 1 Ally Attacks 33 | . . . . 33 Total Damage 523 | . . . . 523 Kills 11 | . . . . 11 Allies Corrupted . | . . . . . Allies Melted . | . . . . . Intel | -11 -10 -10 -10 -9 ------- Run | Yrd Mat Min Exi Min Robot Analysis Total . | . . . . . Derelict Logs Recovered 1 | . . 1 . . Drone Launches . | . . . . . Drone Recoveries . | . . . . . Exploration | -11 -10 -10 -10 -9 ------------- Run | Yrd Mat Min Exi Min Turns Passed 1717 | 91 195 425 861 145 Spaces Moved 1243 | 45 128 334 645 91 Core 6 | 6 . . . . Treads . | . . . . . Legs 1237 | 39 128 334 645 91 Wheels . | . . . . . Hover . | . . . . . Flight . | . . . . . Fastest Speed 50 | 50 120 120 120 130 Average Speed 123 | 110 120 120 124 130 Slowest Speed 140 | 120 120 120 130 140 Overloaded Moves . | . . . . . Propulsion Burnouts . | . . . . . Robots Hopped . | . . . . . Cave-ins Triggered . | . . . . . Exploration Rate (%) 46 | 4 23 90 90 24 Regions Visited 4 Branch Regions 3 Pre-discovered Areas 1 | . . . 1 . Known Exits Taken . | . . . . . Unknown Exits Taken 4 | 1 1 1 1 . Scrap Searched 2 | . . 1 . 1 Spaces Dug . | . . . . . Terrain Destroyed 20 | . . . . 20 Melee . | . . . . . Projectile . | . . . . . AOE 20 | . . . . 20 Terrain Rammed . | . . . . . Walls Destroyed . | . . . . . Machines Disabled . | . . . . . Actions | -11 -10 -10 -10 -9 --------- Run | Yrd Mat Min Exi Min Total 1371 | 64 151 346 704 106 Wait 18 | . 11 7 . . Move 1239 | 44 127 333 644 91 Hop . | . . . . . Pick Up 10 | 4 4 . 2 . Fast Attach 10 | 7 . . 3 . Attach 1 | . . . . 1 Detach . | . . . . . Swap 3 | . . . 1 2 Drop 12 | . . . 11 1 Fire 30 | 9 9 6 . 6 Melee 5 | . . . . 5 Ram . | . . . . . Kick . | . . . . . Crush . | . . . . . Escape Stasis . | . . . . . Rewire 43 | . . . 43 . Trap . | . . . . . Miscellaneous . | . . . . . Route ------- -11/Scrapyard -10/Materials -10/Mines (discovered 3 exits: [*Mat x2] / *Exi) -10/Exiles (discovered 2 exits: [*Min x2]) -9/Mines History --------- Turn | Location | Event 5 | -11/Scrapyard | Discovered new exit (range 16) 92 | -11/Scrapyard | Entered Materials 274 | -10/Materials | Discovered new exit (range 12) 287 | -10/Materials | Entered Mines 315 | -10/Mines | Build established: Mutant 462 | -10/Mines | Learned Materials security intel 462 | -10/Mines | Discovered new exit (range 15) 556 | -10/Mines | Discovered new exit (range 10) 558 | -10/Mines | Assisted by bots powering up and referring to "LRC-V3" 700 | -10/Mines | Deemed a non-threat by the Exiles lab entrance 700 | -10/Mines | Discovered new exit (range 5) 712 | -10/Mines | Entered Exiles 712 | -10/Exiles | Found Exiles lab destroyed 712 | -10/Exiles | Accompanied by 5 allies 732 | -10/Exiles | Discovered new exit (range 15) 742 | -10/Exiles | Led the pair of lost Derelicts to a safe place 881 | -10/Exiles | Opened EX-Vault 968 | -10/Exiles | Learned location of Zion (-6) 1052 | -10/Exiles | Discovered new exit (range 10) 1082 | -10/Exiles | Build established: Commander-Mutant 1367 | -10/Exiles | Found Prototype Device 1573 | -10/Exiles | Entered Mines 1573 | -9/Mines | Accompanied by 7 allies 1576 | -9/Mines | Received a Mining Laser from a helpful Derelict 1643 | -9/Mines | Assembled infested the area 1648 | -9/Mines | Assisted by a Guerilla fighting off Assembled 1709 | -9/Mines | Core integrity fell below 50% 1711 | -9/Mines | Lost 9 allies 1713 | -9/Mines | Core integrity fell below 20% 1718 | -9/Mines | Destroyed by D-53 Grenadier with Mini Grenade Launcher Last Messages --------------- 01666_ Trooper 1b suffers critical hit (Burn). 01679_ Destroyed Asb. F-torch. 01687_ as-90049 destroyed. 01687_ as-67359 destroyed. 01689_ as-14141 destroyed. 01689_ U-05 Engineer destroyed. 01691_ as-50383 destroyed. 01695_ as-91211 destroyed. 01696_ The unstable cave ceiling collapses. 01697_ Grenade Launcher destroyed. 01697_ Aluminum Leg destroyed. 01699_ Imp. Terrain Scanner destroyed. 01701_ Ion Engine destroyed. 01701_ as-46118 destroyed. 01708_ The unstable cave ceiling collapses. 01708_ as-73767 destroyed. 01710_ The unstable cave ceiling collapses. 01710_ Mak. Leg destroyed. 01712_ The unstable cave ceiling collapses. 01716_ D-53 Grenadier knocked back. Map ----- +----------------------------------------------------+ | ????????????????? #?????????????????????? | | ?????#???????????#% #?????#???????????????? | | ??????????????#??#%[##### #???????????????? | | ?????????????????#!%! #???????????????? | | ?????????????????#!%#######???????????????? | | ?????????????????#]%#?????????????????????? | | ?????????????????#]!#?????????????????????? | | ?????????????#?###%[#???#?????????????????? | | ???#????????#### !%=##????????????????????? | | ????#???#??## =* #????????????????????? | | ???????????# #????????????????????? | | ?#?????????# ##????????????????????? | | ???#??????## #####?#???????????????????? | | ???????#### #####?#?????????????????????? | | ?????### a # ##??????????????????????? | | ?????# ##?????????????????????? | | ???### #?#????????????????????? | | ??## % # ##?###?????#???????????? | | ??# # a ## #### ?????????? | | #?# ??????????? | | ?## # # t #?# #???????????? | | ??# ###t #???????????? | | ??# #???????????? | | ??## #???????????? | | ???##### #####???????????? | | ?????#?## @ #???????????????? | | ?#???#??#### d #???????????????? | | ???????????### ##???????????????? | | ??????????#??## ##????????????????? | | ??????????????## #?????????????????? | | ?????##?#??????### *####????????????????? | | ?????????????????## !%% #????????????????? | | ?????#??#???##????## =## #???? ???????????? | | ?#??????????????#??# %#??#????????????????? | | ???#?#??????????#### #???????????????????? | | ??????????????### #???????????????????? | | ???###??????### ##??????"???????????? | | ??## #????## #??#???????????????? | | ?## ##### | #??????????????????? | | ??# ##??????????????????? | | ???# #######???????????????????? | | ???##### #?????????????????????????? | | ???????## #?????????????????????????? | | ????????## #????????????????????????? | | ?????????## #????????????????????????? | | ??????????# ##????????????????????????? | | ??????????## ##?????????????????????????? | | ???????????#####???#??????????????????????? | | ??????????????????????????????????????????? | | ??????????????????????#???????????????????? | +----------------------------------------------------+ Best States ------------- Heat Dissipation 25 Energy Generation 10 Energy Capacity 250 Matter Stores 300 Matter Capacity 300 Sight Range 16 Terrain Scan Range 16 Terrain Scan Density 10 Evasion (%) 55 Item Schematics ----------------- None Robot Schematics ------------------ None Fabricated ------------ Nothing Alien Tech Used ----------------- None Achievements -------------- None Challenges ------------ None Game ------ Seed CooledAuthchipNanosword Manual? 0 Play Time 00:08:48 Cumulative 49.5 hours Start 2024.05.25 @ 22:46:00 End 2024.05.25 @ 22:53:07 Sessions 1 Manual Loads 0 Difficulty Rogue Special Mode None Game No. 139 Rogue 137 Adventurer 2 Explorer 0 Win Type - Total 0 Types 0/0/0/0/0/0/0/0/0 Lore% 35 Gallery% 49 Achievement% 36 Wizard Run 0 Options --------- Layout 2 ASCII 0 Keyboard 0 Movement Arrows Keybinds 0 Fullscreen 2 Font 24/Smallcaps Map View 50x44 Zoom Use 0% Tactical HUD 1 Map Filters NONE Filters NONE Steam 1 RUN: 15954b05-4805-475a-b5a3-de51807b8842